bitfinex/quotes_ETHUSD_20240810
["timestamp","ask_amount","ask_price","bid_price","bid_amount"]
[1723330998239,1.9172,2608.0,2607.7,2.2862]
[1723330998886,0.06433396,2607.9,2607.7,2.2862]
[1723331000251,1.91732,2607.8,2607.7,2.2862]
[1723331000648,1.98160289,2607.8,2607.7,2.2862]
[1723331001048,4.98160289,2607.8,2607.7,2.2862]
[1723331003147,3.83494,2607.6,2607.5,2.4134257]
[1723331003351,4.99294,2607.6,2607.5,0.1272257]
[1723331003585,8.05744367,2607.6,2607.5,0.1272257]
[1723331004348,9.38507132,2607.6,2607.5,0.1272257]
[1723331004590,11.30255094,2607.6,2607.5,0.1272257]
[1723331005087,8.05744367,2607.6,2607.5,0.1272257]
[1723331005492,8.05744367,2607.6,2607.5,2.4631257]
[1723331005791,6.89944367,2607.6,2607.5,2.4631257]
[1723331011181,3.06450367,2607.6,2607.5,2.4631257]
[1723331011390,0.06450367,2607.6,2607.5,2.70943827]
[1723331011698,1.91735,2607.8,2607.5,2.70943827]
[1723331011905,0.05987288,2607.7,2607.5,2.4631257]
[1723331012247,1.91735,2607.8,2607.5,2.4631257]
[1723331012433,0.05984964,2607.6,2607.5,2.4631257]
[1723331012583,1.91747,2607.6,2607.5,2.4631257]
[1723331012783,3.89478964,2607.6,2607.5,2.4631257]
[1723331013023,6.89478964,2607.6,2607.5,2.4631257]
[1723331013869,6.89478964,2607.6,2607.5,0.1272257]
[1723331014935,8.22239641,2607.6,2607.5,0.1272257]
[1723331015126,8.22240089,2607.6,2607.5,0.1272257]
[1723331015326,8.22239201,2607.6,2607.5,0.1272257]
[1723331015841,6.89478964,2607.6,2607.5,0.1272257]
[1723331019561,4.97731964,2607.6,2607.5,2.4567257]
[1723331019762,0.05984964,2607.6,2607.5,2.4567257]
[1723331020462,1.91735,2607.8,2607.5,2.4567257]
[1723331021076,0.0598922,2607.7,2607.5,2.4567257]
[1723331021462,1.91735,2607.8,2607.5,2.4567257]
[1723331021685,0.05984112,2607.6,2607.5,2.4567257]
[1723331021844,1.91735,2607.8,2607.5,2.4567257]
[1723331022047,0.05984112,2607.6,2607.5,2.4567257]
[1723331022545,1.91735,2607.8,2607.5,2.4567257]
[1723331022751,1.9773322,2607.7,2607.5,2.4567257]
[1723331023167,4.9773322,2607.7,2607.5,2.4567257]
[1723331024459,1.91747,2607.6,2607.5,2.4567257]
[1723331024663,4.91747,2607.6,2607.5,2.4567257]
[1723331024862,1.97731112,2607.6,2607.5,2.4567257]
[1723331025262,3.89478112,2607.6,2607.5,0.1272257]
[1723331025487,8.81225112,2607.6,2607.5,0.1272257]
[1723331025666,10.13989394,2607.6,2607.5,0.1272257]
[1723331026003,10.53910264,2607.6,2607.5,0.1272257]
[1723331026915,9.76145982,2607.6,2607.5,0.1272257]
[1723331027563,13.00678021,2607.6,2607.5,0.1272257]
[1723331028170,13.00678021,2607.6,2606.1,7.35]
[1723331028171,3.83571,2607.1,2606.1,2.3295]
[1723331028375,1.91843,2606.3,2606.1,2.3295]
[1723331028926,0.05900904,2606.2,2606.1,2.3295]
[1723331029228,1.91843,2606.3,2606.1,2.3295]
[1723331029432,0.05900904,2606.2,2606.1,2.3295]
[1723331030134,3.0,2606.4,2606.1,2.3295]
[1723331030306,0.05906018,2606.3,2606.1,2.3295]
[1723331030494,3.0,2606.6,2606.1,2.754321]
[1723331030689,0.05916243,2606.5,2606.1,2.754321]
[1723331031014,1.97744243,2606.5,2606.1,2.754321]
[1723331031212,1.97744243,2606.5,2606.1,2.3295]
[1723331032125,1.91839,2606.4,2606.1,2.3295]
[1723331032335,0.0588061,2606.3,2606.1,2.3295]
[1723331032853,1.9772261,2606.3,2606.1,2.3295]
[1723331033149,0.0588061,2606.3,2606.1,2.3295]
[1723331035352,1.91828,2606.5,2606.1,2.3295]
[1723331035536,0.05884269,2606.4,2606.1,2.3295]
[1723331035720,0.05884269,2606.4,2606.1,2.76198808]
[1723331036084,4.91821,2606.6,2606.1,2.76198808]
[1723331036205,0.056602,2606.3,2606.1,2.76198808]
[1723331036547,0.05655087,2606.2,2606.1,4.7572917]
[1723331036757,3.0,2606.6,2606.2,2.4431]
[1723331037037,0.05668973,2606.5,2606.2,2.4431]
[1723331039877,0.05668973,2606.5,2606.2,2.58971881]
[1723331040156,0.05668973,2606.5,2606.3,2.4431]
[1723331040335,3.0,2606.8,2606.3,2.4431]
[1723331040541,0.0561757,2606.7,2606.3,2.4431]
[1723331040757,4.91806,2606.8,2606.3,2.4431]
[1723331040914,0.0561757,2606.7,2606.3,2.4431]
[1723331041110,3.0,2606.8,2606.3,2.4431]
[1723331041315,0.0561757,2606.7,2606.4,2.4431]
[1723331041541,1.91807,2606.8,2606.4,2.4431]
[1723331041738,3.0561757,2606.7,2606.4,2.4431]
[1723331042042,0.0561757,2606.7,2606.4,2.4431]
[1723331042233,3.0,2606.6,2606.4,2.4431]
[1723331042428,4.91807,2606.8,2606.4,2.4431]
[1723331042632,0.05607346,2606.5,2606.4,2.4431]
[1723331042828,1.91814,2606.7,2606.4,2.4431]
[1723331043034,0.05607346,2606.5,2606.4,2.4431]
[1723331043232,1.91814,2606.7,2606.4,2.4431]
[1723331043437,0.05607346,2606.5,2606.4,2.4431]
[1723331043683,1.91814,2606.7,2606.4,2.4431]
[1723331043811,0.05613641,2606.5,2606.4,2.4431]
[1723331044016,1.91814,2606.7,2606.4,2.4431]
[1723331044533,0.05618753,2606.6,2606.4,2.4431]
[1723331047262,1.91828,2606.5,2606.4,2.4431]
[1723331047423,4.91828,2606.5,2606.4,2.4431]
[1723331047627,4.97441941,2606.5,2606.4,2.4431]
[1723331048218,1.9185,2606.2,2606.1,2.4206]
[1723331048423,3.837,2606.2,2606.1,2.4206]
[1723331048662,6.89298602,2606.2,2606.1,2.4206]
[1723331048858,1.91885,2605.8,2605.3,2.4206]
[1723331049063,3.0,2606.1,2605.5,2.4206]
[1723331049248,4.91863,2606.1,2605.5,2.4206]
[1723331049455,0.0557998,2606.0,2605.5,2.4206]
[1723331049623,0.0557998,2606.0,2605.6,0.5508607]
[1723331049825,1.9744598,2606.0,2605.7,2.4206]
[1723331050381,1.91879,2605.8,2605.7,2.4206]
[1723331050735,1.97434957,2605.8,2605.7,2.4206]
[1723331051125,0.05555957,2605.8,2605.7,2.4206]
[1723331051326,1.91871,2606.0,2605.7,2.4206]
[1723331051538,0.05561072,2605.9,2605.7,2.4206]
[1723331051770,4.91852,2606.2,2605.7,2.4206]
[1723331052063,0.05571301,2606.1,2605.7,1.91885]
[1723331052253,0.05571301,2606.1,2605.8,2.49734959]
[1723331052439,0.05571301,2606.1,2605.9,2.4206]
[1723331052638,3.0,2606.3,2605.9,2.4206]
[1723331052838,0.05566187,2606.0,2605.9,2.4206]
[1723331053070,3.0,2606.3,2605.9,2.4206]
[1723331053237,0.05566187,2606.0,2605.9,2.4206]
[1723331053440,1.91854,2606.2,2605.9,2.4206]
[1723331053936,0.05571301,2606.1,2605.9,2.4206]
[1723331054762,3.0,2606.3,2605.9,2.4206]
[1723331054940,0.05569819,2606.2,2605.9,2.4206]
[1723331055146,3.0,2606.3,2605.9,2.4206]
[1723331055461,0.05569819,2606.2,2605.9,2.4206]
[1723331055838,3.0,2606.3,2605.9,2.4206]
[1723331056064,0.05564705,2606.1,2605.9,2.4206]
[1723331056227,4.91844,2606.3,2605.9,2.4206]
[1723331056776,0.05569819,2606.2,2605.9,2.4206]
[1723331057065,6.83692,2606.3,2605.9,2.4206]
[1723331057066,4.91844,2606.3,2605.9,2.4206]
[1723331057233,0.05564705,2606.1,2605.9,2.4206]
[1723331057435,4.91844,2606.3,2605.9,2.4206]
[1723331057968,0.05571151,2606.2,2605.9,2.4206]
[1723331058274,1.9185,2606.2,2605.9,2.4206]
[1723331058430,0.05566038,2606.1,2605.9,2.4206]
[1723331059034,6.83692,2606.3,2605.9,2.41852374]
[1723331059362,1.91851,2606.2,2605.9,2.41852374]
[1723331059658,0.05569336,2606.1,2605.9,2.41852374]
[1723331060556,1.97431336,2606.1,2605.9,2.41852374]
[1723331060870,1.91864,2606.0,2605.9,2.41852374]
[1723331061243,1.9742599,2606.0,2605.9,2.41852374]
[1723331062271,3.8928999,2606.0,2605.9,2.41852374]
[1723331064348,6.8928999,2606.0,2605.9,2.41852374]
[1723331066691,1.91895,2605.6,2605.3,2.4476]
[1723331067002,0.05529348,2605.5,2605.3,2.4476]
[1723331067149,1.97431348,2605.5,2605.3,2.4476]
[1723331067350,1.97431432,2605.4,2605.3,2.4476]
[1723331068063,0.05522432,2605.4,2605.3,2.4476]
[1723331068851,3.83797,2605.6,2605.3,2.4476]
[1723331069048,1.91898,2605.6,2605.3,2.4476]
[1723331069247,0.0552275,2605.5,2605.3,2.4476]
[1723331069679,1.91887,2605.7,2605.3,2.4476]
[1723331070385,0.05527866,2605.6,2605.3,2.4476]
[1723331070710,0.05527866,2605.6,2605.3,0.44435347]
[1723331070994,4.91878,2605.9,2605.4,2.4476]
[1723331071162,0.05538097,2605.8,2605.4,2.4476]
[1723331073098,3.05538097,2605.8,2605.4,2.4476]
[1723331073256,0.05538097,2605.8,2605.4,4.36667]
[1723331073459,0.05538097,2605.8,2605.5,2.4476]
[1723331074192,3.05538097,2605.8,2605.5,2.4476]
[1723331074774,0.05538097,2605.8,2605.5,2.4476]
[1723331076257,1.21538097,2605.8,2605.5,2.4476]
[1723331076687,4.21538097,2605.8,2605.5,2.4476]
[1723331077000,3.05538097,2605.8,2605.5,2.4476]
[1723331077200,0.05538097,2605.8,2605.5,2.43238772]
[1723331077488,0.05538097,2605.8,2605.6,2.4474]
[1723331077665,3.0,2606.0,2605.6,2.4474]
[1723331077867,1.91861,2606.1,2605.6,2.4474]
[1723331077868,0.0550638,2605.7,2605.6,2.4474]
[1723331078191,1.91861,2606.1,2605.6,3.05137768]
[1723331078356,0.0550728,2605.7,2605.6,3.05137768]
[1723331078556,1.91861,2606.1,2605.6,3.05137768]
[1723331078785,0.0550728,2605.7,2605.6,4.36633]
[1723331078988,1.91861,2606.1,2605.7,2.4474]
[1723331079702,3.0,2606.2,2605.7,2.4474]
[1723331079876,4.91851,2606.2,2605.7,2.4474]
[1723331080673,3.83721,2606.1,2605.7,2.4474]
[1723331080875,3.0,2606.0,2605.7,2.4474]
[1723331081364,1.91859,2606.1,2605.7,2.4474]
[1723331082891,1.91872,2606.0,2605.7,2.4474]
[1723331083094,4.91872,2606.0,2605.7,2.4474]
[1723331083764,1.91879,2605.8,2605.7,2.4474]
[1723331084607,1.97391395,2605.8,2605.7,2.4474]
[1723331085183,3.89270395,2605.8,2605.7,2.4474]
[1723331086876,1.97391395,2605.8,2605.7,2.4474]
[1723331088895,0.05512395,2605.8,2605.7,2.4474]
[1723331090514,0.05512395,2605.8,2605.2,2.4474]
[1723331090687,1.91913,2605.4,2605.2,2.4474]
[1723331090891,1.91906,2605.5,2605.2,2.4474]
[1723331091520,0.05495138,2605.4,2605.2,2.4474]
[1723331091719,1.91894,2605.6,2605.2,2.4474]
[1723331091917,0.05491474,2605.3,2605.2,2.4474]
[1723331092118,1.91894,2605.6,2605.2,2.4474]
[1723331092282,0.05491594,2605.3,2605.2,2.4474]
[1723331092495,1.91894,2605.6,2605.2,2.4474]
[1723331092692,0.05479184,2605.3,2605.2,2.4474]
[1723331092896,1.91901,2605.5,2605.2,2.4474]
[1723331093131,0.05479184,2605.3,2605.2,2.4474]
[1723331093327,1.91894,2605.6,2605.2,2.4474]
[1723331093636,0.05479184,2605.3,2605.2,2.4474]
[1723331093806,1.91916,2605.3,2605.2,2.4474]
[1723331094213,1.97396637,2605.3,2605.2,2.4474]
[1723331095340,0.05480637,2605.3,2605.2,2.4474]
[1723331095941,1.91897,2605.6,2605.2,2.4474]
[1723331096128,0.05480517,2605.3,2605.2,2.4474]
[1723331097017,0.0548197,2605.3,2605.2,2.4474]
[1723331097211,0.0548197,2605.3,2605.2,3.000065]
[1723331097547,0.0548197,2605.3,2605.2,4.919245]
[1723331097756,3.0,2605.8,2605.2,4.391075]
[1723331097916,3.0,2605.8,2605.4,2.3202]
[1723331099103,3.0,2605.8,2605.4,4.23927]
[1723331099299,7.3,2605.9,2605.5,2.3202]
[1723331099535,0.05500981,2605.7,2605.5,2.3202]
[1723331099715,7.3,2605.9,2605.5,2.3202]
[1723331100343,0.05507549,2605.8,2605.5,2.3202]
[1723331100559,0.05507549,2605.8,2605.6,2.3202]
[1723331101041,1.97387549,2605.8,2605.6,2.3202]
[1723331103335,1.91887,2605.7,2605.6,2.3202]
[1723331103545,0.05500981,2605.7,2605.6,2.3202]
[1723331103725,1.91887,2605.7,2605.6,2.3202]
[1723331104044,0.05500981,2605.7,2605.6,2.3202]
[1723331104416,1.9188,2605.8,2605.6,2.3202]
[1723331104617,0.05501881,2605.7,2605.6,2.3202]
[1723331105020,1.9188,2605.8,2605.6,2.3202]
[1723331105453,0.05501881,2605.7,2605.6,2.3202]
[1723331105767,4.91873,2605.9,2605.6,2.3202]
[1723331106065,0.05501881,2605.7,2605.6,2.3202]
[1723331106361,0.05316235,2605.8,2605.6,2.3202]
[1723331107335,3.0,2606.0,2605.6,2.55222]
[1723331107543,0.05315019,2605.7,2605.6,2.3202]
[1723331107749,1.91865,2606.0,2605.6,2.3202]
[1723331107943,4.91865,2606.0,2605.6,2.3202]
[1723331108148,0.05325249,2605.9,2605.6,2.3202]
[1723331108561,4.91861,2606.1,2605.6,2.3202]
[1723331108766,0.05320134,2605.8,2605.6,2.3202]
[1723331109063,0.05315019,2605.7,2605.6,2.3202]
[1723331109226,3.0,2606.0,2605.6,2.3202]
[1723331109421,0.05325249,2605.9,2605.6,2.3202]
[1723331109829,1.97198249,2605.9,2605.6,2.3202]
[1723331110074,0.05320134,2605.8,2605.6,2.3202]
[1723331111872,1.97201134,2605.8,2605.6,2.3202]
[1723331112046,3.89084134,2605.8,2605.6,2.3202]
[1723331112245,1.2173,2605.7,2604.9,0.1272257]
[1723331112449,1.91938,2605.0,2604.9,0.1272257]
[1723331112965,1.97217201,2605.0,2604.9,0.1272257]
[1723331113168,0.05279201,2605.0,2604.9,0.1272257]
[1723331114174,3.89155201,2605.0,2604.9,0.1272257]
[1723331114381,1.97217201,2605.0,2604.9,0.1272257]
[1723331115488,0.05279201,2605.0,2604.9,0.1272257]
[1723331117087,1.91919,2605.3,2604.9,0.1272257]
[1723331117689,1.97213437,2605.2,2604.9,0.1272257]
[1723331117889,4.97213437,2605.2,2604.9,0.1272257]
[1723331118646,1.91931,2605.1,2604.9,0.1272257]
[1723331118855,4.91931,2605.1,2604.9,0.1272257]
[1723331119058,0.05279201,2605.0,2604.9,0.1272257]
[1723331120083,0.05279201,2605.0,2604.9,2.5592257]
[1723331120390,1.91919,2605.3,2604.9,2.5592257]
[1723331120693,3.83842,2605.3,2604.9,2.5592257]
[1723331120894,4.9719454,2605.2,2604.9,2.5592257]
[1723331121094,3.0,2605.1,2604.9,2.5592257]
[1723331121463,0.05265422,2605.1,2604.9,2.5592257]
[1723331121663,1.97196422,2605.1,2604.9,2.5592257]
[1723331121886,4.97196422,2605.1,2604.9,2.5592257]
[1723331122296,1.97196422,2605.1,2604.9,2.5592257]
[1723331122459,0.05265422,2605.1,2604.9,2.5592257]
[1723331122793,0.05265422,2605.1,2604.9,2.81514827]
[1723331123093,0.05265422,2605.1,2604.9,2.89191155]
[1723331123294,1.9189,2605.7,2605.1,1.9193]
[1723331123295,2.31755791,2605.7,2605.1,1.9193]
[1723331123471,2.31755791,2605.7,2605.2,2.50875944]
[1723331125075,0.39865791,2605.7,2605.3,2.432]
[1723331126500,1.91896,2605.6,2605.3,2.432]
[1723331126695,3.0,2605.6,2605.3,2.432]
[1723331127007,1.91905,2605.5,2604.9,2.5592257]
[1723331127311,1.91917,2605.3,2604.9,2.5592257]
[1723331127665,3.83839,2605.3,2604.9,2.5592257]
[1723331127864,1.91917,2605.3,2604.9,2.5592257]
[1723331129469,1.97185775,2605.2,2604.9,2.5592257]
[1723331131101,1.91934,2605.1,2604.9,2.5592257]
[1723331131413,1.97189657,2605.1,2604.9,2.5592257]
[1723331131789,2.04428601,2605.1,2604.9,2.5592257]
[1723331132103,0.12494601,2605.1,2604.9,2.5592257]
[1723331132265,1.91917,2605.3,2604.9,2.5592257]
[1723331132473,0.12504282,2605.2,2604.9,2.5592257]
[1723331132681,1.91917,2605.3,2604.9,2.5592257]
[1723331132880,0.12499442,2605.1,2604.9,2.5592257]
[1723331133077,1.91917,2605.3,2604.9,2.5592257]
[1723331133308,0.12504282,2605.2,2604.9,2.5592257]
[1723331133529,1.91936,2605.1,2604.9,2.5592257]
[1723331133858,2.04435442,2605.1,2604.9,2.5592257]
[1723331134512,1.91938,2605.0,2604.9,2.5592257]
[1723331134710,6.96368741,2605.0,2604.9,2.5592257]
[1723331134924,3.96368741,2605.0,2604.9,2.5592257]
[1723331135220,6.96368741,2605.0,2604.9,2.5592257]
[1723331136596,3.12492741,2605.0,2604.9,2.5592257]
[1723331136998,0.12492741,2605.0,2604.9,2.5592257]
[1723331137385,1.91927,2605.2,2604.9,2.5592257]
[1723331137608,0.12477323,2605.0,2604.9,2.5592257]
[1723331137815,4.91931,2605.1,2604.9,2.5592257]
[1723331137998,0.12477323,2605.0,2604.9,2.5592257]
[1723331138634,3.0,2605.1,2604.9,2.5592257]
[1723331138844,0.12473312,2605.0,2604.9,2.5592257]
[1723331139136,1.91927,2605.2,2604.9,2.5592257]
[1723331139330,0.12473311,2605.0,2604.9,2.5592257]
[1723331139632,3.8384,2605.3,2604.9,2.5592257]
[1723331139831,0.12474686,2605.0,2604.9,2.5592257]
[1723331140037,1.91918,2605.3,2604.9,2.5592257]
[1723331140635,1.91931,2605.1,2604.9,2.5592257]
[1723331141131,2.04413945,2605.0,2604.9,2.5592257]
[1723331141833,5.04413945,2605.0,2604.9,2.5592257]
[1723331148164,3.12475945,2605.0,2604.9,2.5592257]
[1723331148376,0.12475945,2605.0,2604.9,2.5592257]
[1723331148656,3.07922,2605.3,2604.9,2.5592257]
[1723331148815,2.04416798,2605.0,2604.9,0.1272257]
[1723331149023,1.91938,2605.0,2604.9,0.1272257]
[1723331149218,5.04415537,2605.0,2604.9,0.1272257]
[1723331149757,6.96353537,2605.0,2604.9,0.1272257]
[1723331150130,8.88291537,2605.0,2604.9,0.1272257]
[1723331150445,6.96353537,2605.0,2604.9,0.1272257]
[1723331150863,6.96353537,2605.0,2604.9,2.4831257]
[1723331151021,5.04415537,2605.0,2604.9,2.4831257]
[1723331152577,3.12477537,2605.0,2604.9,2.4831257]
[1723331152735,5.04415537,2605.0,2604.9,2.4831257]
[1723331154633,0.12477537,2605.0,2604.9,2.4831257]
[1723331154834,0.12477537,2605.0,2604.9,2.73143827]
[1723331155037,3.07909,2605.4,2604.9,2.73143827]
[1723331155364,4.99823,2605.4,2604.9,2.73143827]
[1723331155557,0.120791,2605.3,2604.9,2.73143827]
[1723331156435,5.039951,2605.3,2604.9,2.73143827]
[1723331156851,3.120791,2605.3,2604.9,2.73143827]
[1723331157637,3.120791,2605.3,2604.9,2.29496827]
[1723331157842,3.120791,2605.3,2605.0,2.2686]
[1723331158232,5.039951,2605.3,2605.0,2.2686]
[1723331158566,3.120791,2605.3,2605.0,2.2686]
[1723331158883,5.039971,2605.3,2605.0,2.2686]
[1723331159572,3.120791,2605.3,2605.0,2.2686]
[1723331159762,3.120791,2605.3,2605.0,2.34537016]
[1723331159938,3.120791,2605.3,2605.0,2.78457175]
[1723331160142,0.120791,2605.3,2605.0,2.78457175]
[1723331160468,0.120791,2605.3,2605.2,2.2686]
[1723331160769,9.21874,2605.9,2605.3,1.91915]
[1723331160971,1.91874,2605.9,2605.4,2.66094443]
[1723331161668,3.07872,2606.0,2605.4,2.66094443]
[1723331161972,1.9183,2606.5,2605.6,2.2686]
[1723331162266,1.16,2606.2,2605.6,2.2686]
[1723331162468,1.9187,2606.0,2605.6,2.2686]
[1723331163356,1.91873,2605.9,2605.6,2.64301904]
[1723331163545,4.91873,2605.9,2605.6,2.64301904]
[1723331164083,1.91863,2606.1,2605.6,2.64301904]
[1723331164675,1.91863,2606.1,2605.6,2.2686]
[1723331164676,1.91884,2605.8,2605.6,2.2686]
[1723331166088,4.91879,2605.9,2605.6,2.2686]
[1723331166649,1.91879,2605.8,2605.6,2.2686]
[1723331167177,4.91879,2605.9,2605.6,2.2686]
[1723331167686,6.83756,2605.9,2605.6,2.2686]
[1723331167991,4.91877,2605.9,2605.6,2.2686]
[1723331168151,6.83754,2605.9,2605.6,2.2686]
[1723331168352,4.91877,2605.9,2605.6,2.2686]
[1723331168851,3.0,2605.9,2605.6,2.49546]
[1723331169049,1.91861,2606.1,2605.6,2.49546]
[1723331169875,1.91871,2606.0,2605.6,2.2686]
[1723331170083,3.0,2606.0,2605.6,2.2686]
[1723331170385,4.91861,2606.1,2605.6,2.2686]
[1723331171375,1.91861,2606.1,2605.6,2.2686]
[1723331171572,1.91861,2606.1,2605.8,2.2686]
[1723331174572,0.11757976,2606.0,2605.8,2.2686]
[1723331177001,2.03622976,2606.0,2605.8,2.2686]
[1723331177183,1.91872,2605.9,2605.8,2.2686]
[1723331177365,2.03625139,2605.9,2605.8,2.2686]
[1723331180069,3.95497139,2605.9,2605.8,2.2686]
[1723331180379,6.95497139,2605.9,2605.8,2.2686]
[1723331189597,5.03625139,2605.9,2605.8,2.2686]
[1723331189894,5.03625139,2605.9,2605.8,2.49546]
[1723331189895,0.11753139,2605.9,2605.8,2.49546]
[1723331190617,0.11649978,2605.9,2605.8,2.49546]
[1723331190816,1.91817,2606.7,2606.1,1.91852]
[1723331192325,1.9184,2606.4,2606.0,1.16]
[1723331192694,3.0,2606.5,2606.0,1.16]
[1723331192884,1.91826,2606.6,2606.0,1.16]
[1723331193221,1.91826,2606.6,2606.0,1.682419]
[1723331193782,1.91826,2606.6,2606.1,2.2675]
[1723331194528,3.83652,2606.6,2606.1,2.2675]
[1723331194734,4.91828,2606.5,2606.1,2.2675]
[1723331194941,1.91828,2606.5,2606.1,2.2675]
[1723331195132,4.91828,2606.5,2606.1,2.2675]
[1723331195335,3.0,2606.5,2606.1,2.2675]
[1723331195564,1.91826,2606.6,2606.2,2.3714]
[1723331196959,3.0,2606.7,2606.2,2.3714]
[1723331197133,5.31673862,2606.8,2606.3,2.3714]
[1723331197538,1.91814,2606.7,2606.3,2.3714]
[1723331197738,4.91814,2606.7,2606.3,2.3714]
[1723331198141,1.91821,2606.6,2606.3,2.3714]
[1723331198359,4.91821,2606.6,2606.3,2.3714]
[1723331198730,1.91821,2606.6,2606.3,2.3714]
[1723331200054,1.91837,2606.4,2606.1,2.3714]
[1723331201075,3.0,2606.5,2606.1,2.3714]
[1723331201279,4.91824,2606.6,2606.1,4.834961]
[1723331201509,4.91824,2606.6,2606.2,2.3714]
[1723331201831,3.0,2606.6,2606.2,2.3714]
[1723331202132,6.07815,2606.7,2606.2,2.3714]
[1723331202371,6.07818,2606.7,2606.2,2.3714]
[1723331204503,0.11713477,2606.6,2606.2,2.3714]
[1723331204638,0.11713477,2606.6,2606.2,4.28988]
[1723331204836,0.11713477,2606.6,2606.3,2.2517]
[1723331205938,6.47670862,2606.8,2606.3,2.2517]
[1723331206134,3.11735317,2606.7,2606.3,2.2517]
[1723331209853,0.11735317,2606.7,2606.3,2.2517]
[1723331210286,4.91806,2606.8,2606.3,2.2517]
[1723331210591,0.11733943,2606.7,2606.3,2.2517]
[1723331210755,4.91806,2606.8,2606.3,2.2517]
[1723331210954,0.11729109,2606.6,2606.3,2.2517]
[1723331211287,4.91806,2606.8,2606.3,2.2517]
[1723331211495,0.11724275,2606.5,2606.3,2.2517]
[1723331211692,4.91806,2606.8,2606.3,2.2517]
[1723331211899,0.1171944,2606.4,2606.3,6.697339]
[1723331212100,0.00098634,2607.0,2606.8,1.91805]
[1723331212401,0.00098634,2607.0,2606.9,2.2517]
[1723331214903,0.00098634,2607.0,2606.9,4.16968]
[1723331215460,0.00098634,2607.0,2606.9,4.78612056]
[1723331215679,0.00098634,2607.0,2606.9,4.8628316]
[1723331216896,0.00098634,2607.0,2606.9,6.7808116]
[1723331219486,0.11474199,2607.0,2606.9,6.7808116]
[1723331219957,0.11474199,2607.0,2606.9,4.8628316]
[1723331220204,0.11474199,2607.0,2606.9,4.78612056]
[1723331220902,0.11474199,2607.0,2606.9,2.86814056]
[1723331221259,0.11474199,2607.0,2606.9,4.78612056]
[1723331223208,0.11474199,2607.0,2606.9,4.86282923]
[1723331223708,0.11474199,2607.0,2606.9,6.78080923]
[1723331223921,0.11474199,2607.0,2606.9,4.86282923]
[1723331225080,0.11474199,2607.0,2606.9,6.78080923]
[1723331225285,0.11375565,2607.0,2606.9,4.78612056]
[1723331225508,0.11375565,2607.0,2606.9,4.86282753]
[1723331225709,4.16,2607.5,2607.0,4.25786]
[1723331225910,4.16,2607.5,2607.1,2.34]
[1723331226431,6.07758,2607.5,2607.1,2.34]
[1723331231581,7.99517,2607.5,2607.1,2.34]
[1723331232018,6.07758,2607.5,2607.1,2.34]
[1723331232323,4.16,2607.5,2607.1,2.34]
[1723331233518,3.0,2607.5,2607.2,1.91769]
[1723331233829,1.91718,2608.0,2607.4,2.34]
[1723331233997,1.91713,2608.1,2607.4,2.34]
[1723331233998,1.91726,2607.9,2607.4,2.34]
[1723331234518,0.11283925,2607.8,2607.4,2.34]
[1723331234827,0.11283925,2607.8,2607.5,2.4884]
[1723331235833,0.11283925,2607.8,2607.6,2.4884]
[1723331236037,1.91725,2607.9,2607.6,2.4884]
[1723331236232,0.11277835,2607.7,2607.6,2.4884]
[1723331236535,4.91718,2608.0,2607.6,2.4884]
[1723331236736,0.11277835,2607.7,2607.6,2.4884]
[1723331237237,4.91718,2608.0,2607.6,2.4884]
[1723331237426,0.11279095,2607.7,2607.6,2.4884]
[1723331237631,4.91718,2608.0,2607.6,2.4884]
[1723331237808,0.11279095,2607.7,2607.6,2.4884]
[1723331238003,1.91725,2607.9,2607.6,2.4884]
[1723331238308,0.11279095,2607.7,2607.6,2.4884]
[1723331238637,0.11277722,2607.7,2607.6,2.4884]
[1723331238939,1.91725,2607.9,2607.6,2.4884]
[1723331239415,0.11282552,2607.8,2607.6,2.4884]
[1723331240435,0.11279095,2607.7,2607.6,2.4884]
[1723331240627,3.0,2608.0,2607.6,2.4884]
[1723331240829,0.11043076,2607.9,2607.6,2.4884]
[1723331245512,0.11043076,2607.9,2607.6,4.93079392]
[1723331245735,3.11043076,2607.9,2607.8,2.4884]
[1723331245931,0.11043076,2607.9,2607.8,4.40572]
[1723331246131,0.11043076,2607.9,2607.8,5.08286254]
[1723331246337,0.00098634,2608.2,2607.9,2.4884]
[1723331247521,3.00098634,2608.2,2607.9,2.4884]
[1723331249548,0.10907613,2608.1,2607.9,2.4884]
[1723331252065,0.10907613,2608.1,2608.0,4.40557]
[1723331252268,0.10907613,2608.1,2608.0,5.04552264]
[1723331253933,0.10907613,2608.1,2608.0,3.12835264]
[1723331254136,2.02617613,2608.1,2608.0,2.4884]
[1723331254338,1.91725,2607.9,2607.5,2.4884]
[1723331254540,3.94333613,2608.1,2607.5,2.4884]
[1723331254726,0.10914549,2607.8,2607.6,2.2904]
[1723331255037,0.10908042,2607.7,2607.6,2.2904]
[1723331255238,1.91754,2607.6,2607.3,2.2904]
[1723331255437,2.02652122,2607.5,2607.3,2.2904]
[1723331255659,5.02652122,2607.5,2607.3,2.2904]
[1723331256159,1.91761,2607.4,2607.3,2.2904]
[1723331256668,2.02647243,2607.4,2607.3,2.2904]
[1723331258670,6.18650243,2607.4,2606.9,2.2904]
[1723331258864,3.18650243,2607.4,2606.9,2.2904]
[1723331259035,3.0,2607.3,2606.9,2.2904]
[1723331259236,0.10880815,2607.2,2606.9,2.2904]
[1723331259649,3.0,2607.3,2606.9,2.2904]
[1723331259979,0.10880815,2607.2,2606.9,2.2904]
[1723331260267,4.91771,2607.3,2606.9,2.2904]
[1723331260475,0.10880815,2607.2,2606.9,2.2904]
[1723331260633,4.91771,2607.3,2606.9,2.2904]
[1723331261039,2.02658815,2607.2,2606.9,2.2904]
[1723331263240,1.91785,2607.1,2606.9,2.2904]
[1723331263481,0.10837094,2607.0,2606.9,2.2904]
[1723331263932,1.91788,2607.1,2606.9,2.2904]
[1723331264134,1.91778,2607.2,2606.9,2.2904]
[1723331264135,2.02598598,2607.0,2606.9,2.2904]
[1723331264555,2.02598598,2607.0,2606.4,2.36712452]
[1723331264556,1.91801,2606.9,2606.4,2.36712452]
[1723331264874,0.10796715,2606.8,2606.4,2.2904]
[1723331265576,0.10796715,2606.8,2606.7,4.20853]